[Event "Fall GM Norm Invitational 2020"]
[Site "Charlotte"]
[Date "2020.10.01"]
[Round "2.3"]
[White "Stremavicius, Titas"]
[Black "Mishra, Abhimanyu"]
[Result "1/2-1/2"]
[ECO "A03"]
[WhiteElo "2517"]
[BlackElo "2342"]
[Annotator "ChessBase"]
[PlyCount "91"]
[EventDate "2020.09.30"]
[EventType "tourn"]
[EventCountry "USA"]
[SourceTitle "playchess.com"]
[Source "ChessBase"]
[SourceQuality "1"]
[TimeControl "5400+30"]

1. f4 {[%emt 1:30:30]} d5 {[%emt 1:30:30]} 2. Nf3 {[%emt 0:00:30]} g6 {[%emt 0:00:30]} 3. g3 {[%emt 0:00:30]} Bg7 {[%emt 0:00:30]} 4. Bg2 {[%emt 0:00:30]} Nf6 {[%emt 0:00:30]} 5. O-O {[%emt 0:00:30]} O-O {[%emt 0:00:30]} 6. a4 {[%emt 0:00:30]} c5 {[%emt 0:00:30]} 7. d3 {[%emt 0:00:30]} Nc6 {[%emt 0:00:30]} 8. c3 {[%emt 0:00:30]} Qc7 {[%emt 0:00:30]} 9. Na3 {[%emt 0:00:30]} Rd8 {[%emt 0:00:30]} 10. Qc2 {[%emt 0:00:30]} d4 {[%emt 0:00:30]} 11. e4 {[%emt 0:00:30]} dxe3 {[%emt 0:00:30]} 12. Bxe3 {[%emt 0:00:30]} Bf5 {[%emt 0:00:30]} 13. Rad1 {[%emt 0:00:30]} b6 {[%emt 0:00:30]} 14. Nh4 {[%emt 0:00:30]} Bg4 {[%emt 0:00:30]} 15. Rde1 {[%emt 0:00:30]} Nd5 {[%emt 0:00:30]} 16. h3 {[%emt 0:00:30]} Nxe3 {[%emt 0:00:30]} 17. Rxe3 {[%emt 0:00:30]} Bd7 {[%emt 0:00:30]} 18. Nb5 {[%emt 0:00:30]} Qc8 {[%emt 0:00:30]} 19. g4 {[%emt 0:00:30]} a6 {[%emt 0:00:30]} 20. Na3 {[%emt 0:00:30]} e6 {[%emt 0:00:30]} 21. Qf2 {[%emt 0:00:30]} f5 {[%emt 0:00:30]} 22. gxf5 {[%emt 0:00:30]} gxf5 {[%emt 0:00:30]} 23. Nf3 {[%emt 0:00:30]} Re8 {[%emt 0:00:30]} 24. Nc4 {[%emt 0:00:30]} Qc7 {[%emt 0:00:30]} 25. Rfe1 {[%emt 0:00:30]} b5 {[%emt 0:00:30]} 26. axb5 {[%emt 0:00:30]} axb5 {[%emt 0:00:30]} 27. Nce5 {[%emt 0:00:30]} Rad8 {[%emt 0:00:30]} 28. Nxc6 {[%emt 0:00:30]} Bxc6 {[%emt 0:00:30]} 29. Rxe6 {[%emt 0:00:30]} Rxe6 {[%emt 0:00:30]} 30. Rxe6 {[%emt 0:00:30]} Bxf3 {[%emt 0:00:30]} 31. Qxf3 {[%emt 0:00:30]} b4 {[%emt 0:00:30]} 32. cxb4 {[%emt 0:00:30]} cxb4 {[%emt 0:00:30]} 33. b3 {[%emt 0:00:30]} Qc3 {[%emt 0:00:30]} 34. Qc6 {[%emt 0:00:30]} Qxc6 {[%emt 0:00:30]} 35. Rxc6 {[%emt 0:00:30]} Rxd3 {[%emt 0:00:30]} 36. Bf1 {[%emt 0:00:30]} Rd4 {[%emt 0:00:30]} 37. Bc4+ {[%emt 0:00:30]} Kf8 {[%emt 0:00:30]} 38. Rc7 {[%emt 0:00:30]} Bh6 {[%emt 0:00:30]} 39. Rf7+ {[%emt 0:00:30]} Ke8 {[%emt 0:00:30]} 40. Rxf5 {[%emt 0:00:30]} Bxf4 {[%emt 0:00:30]} 41. Kf2 {[%emt 0:00:30]} Bd2 {[%emt 0:00:30]} 42. Ke2 {[%emt 0:00:30]} h6 {[%emt 0:00:30]} 43. Bd3 {[%emt 0:00:30]} Bg5 {[%emt 0:00:30]} 44. Rb5 {[%emt 0:00:30]} Rh4 {[%emt 0:00:30]} 45. Bf5 {[%emt 0:00:30]} Rf4 {[%emt 0:00:30]} 46. Bd3 {[%emt 0:00:30]} 1/2-1/2

[Event "Fall GM Norm Invitational 2020"]
[Site "Charlotte"]
[Date "2020.10.01"]
[Round "2.4"]
[White "Fernandez, Daniel"]
[Black "Mista, Aleksander"]
[Result "1-0"]
[ECO "B76"]
[WhiteElo "2470"]
[BlackElo "2574"]
[Annotator "ChessBase"]
[PlyCount "81"]
[EventDate "2020.09.30"]
[EventType "tourn"]
[EventCountry "USA"]
[SourceTitle "playchess.com"]
[Source "ChessBase"]
[SourceQuality "1"]
[TimeControl "5400+30"]

1. e4 {[%emt 1:30:30]} c5 {[%emt 1:30:30]} 2. Nf3 {[%emt 0:00:30]} d6 {[%emt 0:00:30]} 3. d4 {[%emt 0:00:30]} cxd4 {[%emt 0:00:30]} 4. Nxd4 {[%emt 0:00:30]} Nf6 {[%emt 0:00:30]} 5. Nc3 {[%emt 0:00:30]} g6 {[%emt 0:00:30]} 6. Be3 {[%emt 0:00:30]} Bg7 {[%emt 0:00:30]} 7. f3 {[%emt 0:00:30]} Nc6 {[%emt 0:00:30]} 8. Qd2 {[%emt 0:00:30]} O-O {[%emt 0:00:30]} 9. g4 {[%emt 0:00:30]} Be6 {[%emt 0:00:30]} 10. Nxe6 {[%emt 0:00:30]} fxe6 {[%emt 0:00:30]} 11. O-O-O {[%emt 0:00:30]} Ne5 {[%emt 0:00:30]} 12. Be2 {[%emt 0:00:30]} Qc8 {[%emt 0:00:30]} 13. Kb1 {[%emt 0:00:30]} Ne8 {[%emt 0:00:30]} 14. Rhf1 {[%emt 0:00:30]} Nc4 {[%emt 0:00:30]} 15. Bxc4 {[%emt 0:00:30]} Qxc4 {[%emt 0:00:30]} 16. Ne2 {[%emt 0:00:30]} Nc7 {[%emt 0:00:30]} 17. h4 {[%emt 0:00:30]} a5 {[%emt 0:00:30]} 18. h5 {[%emt 0:00:30]} Nb5 {[%emt 0:00:30]} 19. Qd3 {[%emt 0:00:30]} Qb4 {[%emt 0:00:30]} 20. c3 {[%emt 0:00:30]} Qa4 {[%emt 0:00:30]} 21. b3 {[%emt 0:00:30]} Na3+ {[%emt 0:00:30]} 22. Kb2 {[%emt 0:00:30]} Qc6 {[%emt 0:00:30]} 23. Kxa3 {[%emt 0:00:30]} b5 {[%emt 0:00:30]} 24. Kb2 {[%emt 0:00:30]} b4 {[%emt 0:00:30]} 25. Bd4 {[%emt 0:00:30]} a4 {[%emt 0:00:30]} 26. Bxg7 {[%emt 0:00:30]} axb3 {[%emt 0:00:30]} 27. axb3 {[%emt 0:00:30]} Kxg7 {[%emt 0:00:30]} 28. cxb4 {[%emt 0:00:30]} e5 {[%emt 0:00:30]} 29. hxg6 {[%emt 0:00:30]} hxg6 {[%emt 0:00:30]} 30. f4 {[%emt 0:00:30]} Qb6 {[%emt 0:00:30]} 31. Qd2 {[%emt 0:00:30]} Rh8 {[%emt 0:00:30]} 32. Rh1 {[%emt 0:00:30]} Qa7 {[%emt 0:00:30]} 33. Rxh8 {[%emt 0:00:30]} Qa3+ {[%emt 0:00:30]} 34. Kc2 {[%emt 0:00:30]} Rxh8 {[%emt 0:00:30]} 35. Nc3 {[%emt 0:00:30]} Rc8 {[%emt 0:00:30]} 36. Rb1 {[%emt 0:00:30]} Qxb4 {[%emt 0:00:30]} 37. fxe5 {[%emt 0:00:30]} Qxe4+ {[%emt 0:00:30]} 38. Kb2 {[%emt 0:00:30]} Qxg4 {[%emt 0:00:30]} 39. exd6 {[%emt 0:00:30]} exd6 {[%emt 0:00:30]} 40. Ra1 {[%emt 0:00:30]} Rc7 {[%emt 0:00:30]} 41. Nd5 {[%emt 0:00:30]} 1-0

[Event "Fall GM Norm Invitational 2020"]
[Site "Charlotte"]
[Date "2020.10.01"]
[Round "2.5"]
[White "Dragun, Kamil"]
[Black "Daggupati, Balaji"]
[Result "1/2-1/2"]
[ECO "D31"]
[WhiteElo "2561"]
[BlackElo "2331"]
[Annotator "ChessBase"]
[PlyCount "99"]
[EventDate "2020.09.30"]
[EventType "tourn"]
[EventCountry "USA"]
[SourceTitle "playchess.com"]
[Source "ChessBase"]
[SourceQuality "1"]
[TimeControl "5400+30"]

1. d4 {[%emt 1:30:30]} d5 {[%emt 1:30:30]} 2. c4 {[%emt 0:00:30]} e6 {[%emt 0:00:30]} 3. Nc3 {[%emt 0:00:30]} c6 {[%emt 0:00:30]} 4. cxd5 {[%emt 0:00:30]} exd5 {[%emt 0:00:30]} 5. Nf3 {[%emt 0:00:30]} Bf5 {[%emt 0:00:30]} 6. Bf4 {[%emt 0:00:30]} Bd6 {[%emt 0:00:30]} 7. Bxd6 {[%emt 0:00:30]} Qxd6 {[%emt 0:00:30]} 8. Qb3 {[%emt 0:00:30]} Qc7 {[%emt 0:00:30]} 9. e3 {[%emt 0:00:30]} Nf6 {[%emt 0:00:30]} 10. Nh4 {[%emt 0:00:30]} Bg6 {[%emt 0:00:30]} 11. Rc1 {[%emt 0:00:30]} Qb6 {[%emt 0:00:30]} 12. Nxg6 {[%emt 0:00:30]} Qxb3 {[%emt 0:00:30]} 13. axb3 {[%emt 0:00:30]} hxg6 {[%emt 0:00:30]} 14. b4 {[%emt 0:00:30]} a6 {[%emt 0:00:30]} 15. Na4 {[%emt 0:00:30]} Nbd7 {[%emt 0:00:30]} 16. Nc5 {[%emt 0:00:30]} Rb8 {[%emt 0:00:30]} 17. f3 {[%emt 0:00:30]} Ke7 {[%emt 0:00:30]} 18. Bd3 {[%emt 0:00:30]} Nf8 {[%emt 0:00:30]} 19. Kf2 {[%emt 0:00:30]} Ne6 {[%emt 0:00:30]} 20. h4 {[%emt 0:00:30]} Ne8 {[%emt 0:00:30]} 21. g4 {[%emt 0:00:30]} Nd6 {[%emt 0:00:30]} 22. Kg3 {[%emt 0:00:30]} Rh6 {[%emt 0:00:30]} 23. Rce1 {[%emt 0:00:30]} Rd8 {[%emt 0:00:30]} 24. Bb1 {[%emt 0:00:30]} Rhh8 {[%emt 0:00:30]} 25. Rh2 {[%emt 0:00:30]} Rh6 {[%emt 0:00:30]} 26. Ba2 {[%emt 0:00:30]} g5 {[%emt 0:00:30]} 27. h5 {[%emt 0:00:30]} Rdh8 {[%emt 0:00:30]} 28. Bb1 {[%emt 0:00:30]} g6 {[%emt 0:00:30]} 29. Nxe6 {[%emt 0:00:30]} Kxe6 {[%emt 0:00:30]} 30. f4 {[%emt 0:00:30]} gxf4+ {[%emt 0:00:30]} 31. exf4+ {[%emt 0:00:30]} Kd7 {[%emt 0:00:30]} 32. Rhe2 {[%emt 0:00:30]} gxh5 {[%emt 0:00:30]} 33. Re7+ {[%emt 0:00:30]} Kd8 {[%emt 0:00:30]} 34. g5 {[%emt 0:00:30]} h4+ {[%emt 0:00:30]} 35. Kh3 {[%emt 0:00:30]} Rh5 {[%emt 0:00:30]} 36. Bc2 {[%emt 0:00:30]} Re8 {[%emt 0:00:30]} 37. Rxe8+ {[%emt 0:00:30]} Nxe8 {[%emt 0:00:30]} 38. Kg4 {[%emt 0:00:30]} Rh8 {[%emt 0:00:30]} 39. Rh1 {[%emt 0:00:30]} Nd6 {[%emt 0:00:30]} 40. Bd3 {[%emt 0:00:30]} Ne4 {[%emt 0:00:30]} 41. Bxe4 {[%emt 0:00:30]} dxe4 {[%emt 0:00:30]} 42. Rh3 {[%emt 0:00:30]} Kd7 {[%emt 0:00:30]} 43. f5 {[%emt 0:00:30]} Kd6 {[%emt 0:00:30]} 44. g6 {[%emt 0:00:30]} fxg6 {[%emt 0:00:30]} 45. fxg6 {[%emt 0:00:30]} Kd5 {[%emt 0:00:30]} 46. Rxh4 {[%emt 0:00:30]} Rxh4+ {[%emt 0:00:30]} 47. Kxh4 {[%emt 0:00:30]} Ke6 {[%emt 0:00:30]} 48. Kg4 {[%emt 0:00:30]} Kf6 {[%emt 0:00:30]} 49. Kf4 {[%emt 0:00:30]} Kxg6 {[%emt 0:00:30]} 50. Kxe4 {[%emt 0:00:30]} 1/2-1/2

[Event "Fall GM Norm Invitational 2020"]
[Site "Charlotte"]
[Date "2020.10.02"]
[Round "3.3"]
[White "Mishra, Abhimanyu"]
[Black "Fernandez, Daniel"]
[Result "1/2-1/2"]
[ECO "B90"]
[WhiteElo "2342"]
[BlackElo "2470"]
[Annotator "ChessBase"]
[PlyCount "74"]
[EventDate "2020.09.30"]
[EventType "tourn"]
[EventCountry "USA"]
[SourceTitle "playchess.com"]
[Source "ChessBase"]
[SourceQuality "1"]
[TimeControl "5400+30"]

1. e4 {[%emt 1:30:30]} c5 {[%emt 1:30:30]} 2. Nf3 {[%emt 0:00:30]} d6 {[%emt 0:00:30]} 3. d4 {[%emt 0:00:30]} cxd4 {[%emt 0:00:30]} 4. Nxd4 {[%emt 0:00:30]} Nf6 {[%emt 0:00:30]} 5. Nc3 {[%emt 0:00:30]} a6 {[%emt 0:00:30]} 6. Bd3 {[%emt 0:00:30]} g6 {[%emt 0:00:30]} 7. f3 {[%emt 0:00:30]} e5 {[%emt 0:00:30]} 8. Nb3 {[%emt 0:00:30]} Be6 {[%emt 0:00:30]} 9. Bg5 {[%emt 0:00:30]} Nbd7 {[%emt 0:00:30]} 10. Qd2 {[%emt 0:00:30]} h6 {[%emt 0:00:30]} 11. Be3 {[%emt 0:00:30]} b5 {[%emt 0:00:30]} 12. Be2 {[%emt 0:00:30]} Nb6 {[%emt 0:00:30]} 13. Bxb6 {[%emt 0:00:30]} Qxb6 {[%emt 0:00:30]} 14. a4 {[%emt 0:00:30]} b4 {[%emt 0:00:30]} 15. Nd5 {[%emt 0:00:30]} Bxd5 {[%emt 0:00:30]} 16. exd5 {[%emt 0:00:30]} h5 {[%emt 0:00:30]} 17. a5 {[%emt 0:00:30]} Qb7 {[%emt 0:00:30]} 18. O-O {[%emt 0:00:30]} Bh6 {[%emt 0:00:30]} 19. Qd3 {[%emt 0:00:30]} Qxd5 {[%emt 0:00:30]} 20. Ra4 {[%emt 0:00:30]} Qxd3 {[%emt 0:00:30]} 21. Bxd3 {[%emt 0:00:30]} O-O {[%emt 0:00:30]} 22. Rxb4 {[%emt 0:00:30]} Nd5 {[%emt 0:00:30]} 23. Rb7 {[%emt 0:00:30]} Nf4 {[%emt 0:00:30]} 24. Rd1 {[%emt 0:00:30]} Nxd3 {[%emt 0:00:30]} 25. Rxd3 {[%emt 0:00:30]} Rfc8 {[%emt 0:00:30]} 26. c3 {[%emt 0:00:30]} Rab8 {[%emt 0:00:30]} 27. Rb6 {[%emt 0:00:30]} d5 {[%emt 0:00:30]} 28. Kf1 {[%emt 0:00:30]} Rxb6 {[%emt 0:00:30]} 29. axb6 {[%emt 0:00:30]} Rb8 {[%emt 0:00:30]} 30. Rxd5 {[%emt 0:00:30]} Rxb6 {[%emt 0:00:30]} 31. Nc5 {[%emt 0:00:30]} Rxb2 {[%emt 0:00:30]} 32. Nxa6 {[%emt 0:00:30]} f6 {[%emt 0:00:30]} 33. Nb4 {[%emt 0:00:30]} Be3 {[%emt 0:00:30]} 34. Rd3 {[%emt 0:00:30]} Bc5 {[%emt 0:00:30]} 35. Rd8+ {[%emt 0:00:30]} Kf7 {[%emt 0:00:30]} 36. Nd3 {[%emt 0:00:30]} Rb1+ {[%emt 0:00:30]} 37. Ke2 {[%emt 0:00:30]} Be7 {[%emt 0:00:30]} 1/2-1/2

[Event "Fall GM Norm Invitational 2020"]
[Site "Charlotte"]
[Date "2020.10.02"]
[Round "3.5"]
[White "Daggupati, Balaji"]
[Black "Liang, Jason"]
[Result "1-0"]
[ECO "C78"]
[WhiteElo "2331"]
[BlackElo "2367"]
[Annotator "ChessBase"]
[PlyCount "73"]
[EventDate "2020.09.30"]
[EventType "tourn"]
[EventCountry "USA"]
[SourceTitle "playchess.com"]
[Source "ChessBase"]
[SourceQuality "1"]
[TimeControl "5400+30"]

1. e4 {[%emt 1:30:30]} e5 {[%emt 1:30:30]} 2. Nf3 {[%emt 0:00:30]} Nc6 {[%emt 0:00:30]} 3. Bb5 {[%emt 0:00:30]} a6 {[%emt 0:00:30]} 4. Ba4 {[%emt 0:00:30]} Nf6 {[%emt 0:00:30]} 5. O-O {[%emt 0:00:30]} b5 {[%emt 0:00:30]} 6. Bb3 {[%emt 0:00:30]} Bc5 {[%emt 0:00:30]} 7. c3 {[%emt 0:00:30]} d6 {[%emt 0:00:30]} 8. d4 {[%emt 0:00:30]} Bb6 {[%emt 0:00:30]} 9. a4 {[%emt 0:00:30]} Rb8 {[%emt 0:00:30]} 10. a5 {[%emt 0:00:30]} Ba7 {[%emt 0:00:30]} 11. h3 {[%emt 0:00:30]} O-O {[%emt 0:00:30]} 12. Be3 {[%emt 0:00:30]} exd4 {[%emt 0:00:30]} 13. cxd4 {[%emt 0:00:30]} Nxe4 {[%emt 0:00:30]} 14. Bd5 {[%emt 0:00:30]} Qe8 {[%emt 0:00:30]} 15. Re1 {[%emt 0:00:30]} Nf6 {[%emt 0:00:30]} 16. Bg5 {[%emt 0:00:30]} Nxd5 {[%emt 0:00:30]} 17. Rxe8 {[%emt 0:00:30]} Rxe8 {[%emt 0:00:30]} 18. Nc3 {[%emt 0:00:30]} Be6 {[%emt 0:00:30]} 19. Qd2 {[%emt 0:00:30]} Nxc3 {[%emt 0:00:30]} 20. bxc3 {[%emt 0:00:30]} Bd5 {[%emt 0:00:30]} 21. Nh4 {[%emt 0:00:30]} b4 {[%emt 0:00:30]} 22. Nf5 {[%emt 0:00:30]} bxc3 {[%emt 0:00:30]} 23. Qxc3 {[%emt 0:00:30]} Rb3 {[%emt 0:00:30]} 24. Re1 {[%emt 0:00:30]} Re6 {[%emt 0:00:30]} 25. Qd2 {[%emt 0:00:30]} Rxe1+ {[%emt 0:00:30]} 26. Qxe1 {[%emt 0:00:30]} Rb8 {[%emt 0:00:30]} 27. Qe2 {[%emt 0:00:30]} g6 {[%emt 0:00:30]} 28. Ne3 {[%emt 0:00:30]} Bb3 {[%emt 0:00:30]} 29. d5 {[%emt 0:00:30]} Nxa5 {[%emt 0:00:30]} 30. Bh6 {[%emt 0:00:30]} Ba4 {[%emt 0:00:30]} 31. Qa2 {[%emt 0:00:30]} Rb4 {[%emt 0:00:30]} 32. Qd2 {[%emt 0:00:30]} Rb1+ {[%emt 0:00:30]} 33. Kh2 {[%emt 0:00:30]} Nb3 {[%emt 0:00:30]} 34. Qc3 {[%emt 0:00:30]} Bd4 {[%emt 0:00:30]} 35. Qxc7 {[%emt 0:00:30]} Be5+ {[%emt 0:00:30]} 36. g3 {[%emt 0:00:30]} f5 {[%emt 0:00:30]} 37. Qd8+ {[%emt 0:00:30]} 1-0

[Event "Fall GM Norm Invitational 2020"]
[Site "Charlotte"]
[Date "2020.10.02"]
[Round "4.1"]
[White "Gauri, Shankar"]
[Black "Mishra, Abhimanyu"]
[Result "1/2-1/2"]
[ECO "A05"]
[WhiteElo "2353"]
[BlackElo "2342"]
[Annotator "ChessBase"]
[PlyCount "40"]
[EventDate "2020.09.30"]
[EventType "tourn"]
[EventCountry "USA"]
[SourceTitle "playchess.com"]
[Source "ChessBase"]
[SourceQuality "1"]
[TimeControl "5400+30"]

1. Nf3 {[%emt 1:30:30]} Nf6 {[%emt 1:30:30]} 2. g3 {[%emt 0:00:30]} g6 {[%emt 0:00:30]} 3. b3 {[%emt 0:00:30]} Bg7 {[%emt 0:00:30]} 4. Bb2 {[%emt 0:00:30]} d5 {[%emt 0:00:30]} 5. Bg2 {[%emt 0:00:30]} O-O {[%emt 0:00:30]} 6. O-O {[%emt 0:00:30]} c5 {[%emt 0:00:30]} 7. d3 {[%emt 0:00:30]} Nc6 {[%emt 0:00:30]} 8. Ne5 {[%emt 0:00:30]} Nxe5 {[%emt 0:00:30]} 9. Bxe5 {[%emt 0:00:30]} Be6 {[%emt 0:00:30]} 10. Nd2 {[%emt 0:00:30]} Nd7 {[%emt 0:00:30]} 11. Bxg7 {[%emt 0:00:30]} Kxg7 {[%emt 0:00:30]} 12. c4 {[%emt 0:00:30]} Nf6 {[%emt 0:00:30]} 13. Qc2 {[%emt 0:00:30]} Rc8 {[%emt 0:00:30]} 14. Qb2 {[%emt 0:00:30]} b6 {[%emt 0:00:30]} 15. cxd5 {[%emt 0:00:30]} Bxd5 {[%emt 0:00:30]} 16. Bxd5 {[%emt 0:00:30]} Qxd5 {[%emt 0:00:30]} 17. Nf3 {[%emt 0:00:30]} Rfd8 {[%emt 0:00:30]} 18. Rac1 {[%emt 0:00:30]} Kg8 {[%emt 0:00:30]} 19. Rc4 {[%emt 0:00:30]} Qe6 {[%emt 0:00:30]} 20. Rfc1 {[%emt 0:00:30]} a5 {[%emt 0:00:30]} 1/2-1/2

[Event "Fall GM Norm Invitational 2020"]
[Site "Charlotte"]
[Date "2020.10.02"]
[Round "4.2"]
[White "Stremavicius, Titas"]
[Black "Daggupati, Balaji"]
[Result "0-1"]
[ECO "A28"]
[WhiteElo "2517"]
[BlackElo "2331"]
[Annotator "ChessBase"]
[PlyCount "56"]
[EventDate "2020.09.30"]
[EventType "tourn"]
[EventCountry "USA"]
[SourceTitle "playchess.com"]
[Source "ChessBase"]
[SourceQuality "1"]
[TimeControl "5400+30"]

1. c4 {[%emt 1:30:30]} e5 {[%emt 1:30:30]} 2. Nc3 {[%emt 0:00:30]} Nf6 {[%emt 0:00:30]} 3. Nf3 {[%emt 0:00:30]} Nc6 {[%emt 0:00:30]} 4. e3 {[%emt 0:00:30]} Bb4 {[%emt 0:00:30]} 5. Qc2 {[%emt 0:00:30]} Bxc3 {[%emt 0:00:30]} 6. bxc3 {[%emt 0:00:30]} O-O {[%emt 0:00:30]} 7. e4 {[%emt 0:00:30]} d6 {[%emt 0:00:30]} 8. g3 {[%emt 0:00:30]} Nd7 {[%emt 0:00:30]} 9. Nh4 {[%emt 0:00:30]} Nc5 {[%emt 0:00:30]} 10. Be2 {[%emt 0:00:30]} Bh3 {[%emt 0:00:30]} 11. f3 {[%emt 0:00:30]} Ne6 {[%emt 0:00:30]} 12. Bf1 {[%emt 0:00:30]} Bxf1 {[%emt 0:00:30]} 13. Kxf1 {[%emt 0:00:30]} g6 {[%emt 0:00:30]} 14. Kf2 {[%emt 0:00:30]} Na5 {[%emt 0:00:30]} 15. d3 {[%emt 0:00:30]} c6 {[%emt 0:00:30]} 16. Re1 {[%emt 0:00:30]} d5 {[%emt 0:00:30]} 17. exd5 {[%emt 0:00:30]} cxd5 {[%emt 0:00:30]} 18. Bh6 {[%emt 0:00:30]} dxc4 {[%emt 0:00:30]} 19. Bxf8 {[%emt 0:00:30]} cxd3 {[%emt 0:00:30]} 20. Qa4 {[%emt 0:00:30]} Qb6+ {[%emt 0:00:30]} 21. Kf1 {[%emt 0:00:30]} Rxf8 {[%emt 0:00:30]} 22. Rxe5 {[%emt 0:00:30]} Qb2 {[%emt 0:00:30]} 23. Ree1 {[%emt 0:00:30]} d2 {[%emt 0:00:30]} 24. Qxa5 {[%emt 0:00:30]} dxe1=Q+ {[%emt 0:00:30]} 25. Rxe1 {[%emt 0:00:30]} Qxh2 {[%emt 0:00:30]} 26. Qe5 {[%emt 0:00:30]} Rd8 {[%emt 0:00:30]} 27. Re2 {[%emt 0:00:30]} Rd1+ {[%emt 0:00:30]} 28. Re1 {[%emt 0:00:30]} Rd2 {[%emt 0:00:30]} 0-1

[Event "Fall GM Norm Invitational 2020"]
[Site "Charlotte"]
[Date "2020.10.02"]
[Round "4.3"]
[White "Fernandez, Daniel"]
[Black "Niemann, Hans Moke"]
[Result "1/2-1/2"]
[ECO "B00"]
[WhiteElo "2470"]
[BlackElo "2465"]
[Annotator "ChessBase"]
[PlyCount "100"]
[EventDate "2020.09.30"]
[EventType "tourn"]
[EventCountry "USA"]
[SourceTitle "playchess.com"]
[Source "ChessBase"]
[SourceQuality "1"]
[TimeControl "5400+30"]

1. e4 {[%emt 1:30:30]} e5 {[%emt 1:30:30]} 2. Nf3 {[%emt 0:00:30]} Nc6 {[%emt 0:00:30]} 3. Nc3 {[%emt 0:00:30]} Nf6 {[%emt 0:00:30]} 4. Be2 {[%emt 0:00:30]} d6 {[%emt 0:00:30]} 5. d4 {[%emt 0:00:30]} Bg4 {[%emt 0:00:30]} 6. d5 {[%emt 0:00:30]} Ne7 {[%emt 0:00:30]} 7. h3 {[%emt 0:00:30]} Bc8 {[%emt 0:00:30]} 8. Be3 {[%emt 0:00:30]} c6 {[%emt 0:00:30]} 9. dxc6 {[%emt 0:00:30]} bxc6 {[%emt 0:00:30]} 10. Bc4 {[%emt 0:00:30]} Be6 {[%emt 0:00:30]} 11. Qe2 {[%emt 0:00:30]} Ng6 {[%emt 0:00:30]} 12. Ng5 {[%emt 0:00:30]} Bxc4 {[%emt 0:00:30]} 13. Qxc4 {[%emt 0:00:30]} Qd7 {[%emt 0:00:30]} 14. O-O-O {[%emt 0:00:30]} Rd8 {[%emt 0:00:30]} 15. h4 {[%emt 0:00:30]} h6 {[%emt 0:00:30]} 16. h5 {[%emt 0:00:30]} hxg5 {[%emt 0:00:30]} 17. hxg6 {[%emt 0:00:30]} Rxh1 18. Qxf7+ {[%emt 0:00:30]} Qxf7 {[%emt 0:01:00]} 19. gxf7+ {[%emt 0:00:30]} Kxf7 {[%emt 0:00:30]} 20. Rxh1 {[%emt 0:00:30]} g4 {[%emt 0:00:30]} 21. Bxa7 {[%emt 0:00:30]} Ra8 {[%emt 0:00:30]} 22. Bb6 {[%emt 0:00:30]} d5 {[%emt 0:00:30]} 23. exd5 {[%emt 0:00:30]} cxd5 {[%emt 0:00:30]} 24. Bc7 {[%emt 0:00:30]} Ke6 {[%emt 0:00:30]} 25. Re1 {[%emt 0:00:30]} Nd7 {[%emt 0:00:30]} 26. f4 {[%emt 0:00:30]} gxf3 {[%emt 0:00:30]} 27. gxf3 {[%emt 0:00:30]} g5 {[%emt 0:00:30]} 28. Rd1 {[%emt 0:00:30]} d4 {[%emt 0:00:30]} 29. Nb5 {[%emt 0:00:30]} Rxa2 {[%emt 0:00:30]} 30. Bd8 {[%emt 0:00:30]} Kf5 {[%emt 0:00:30]} 31. c3 {[%emt 0:00:30]} Ra1+ {[%emt 0:00:30]} 32. Kc2 {[%emt 0:00:30]} Rxd1 {[%emt 0:00:30]} 33. Kxd1 {[%emt 0:00:30]} d3 {[%emt 0:00:30]} 34. Kd2 {[%emt 0:00:30]} Nc5 {[%emt 0:00:30]} 35. b4 {[%emt 0:00:30]} Ne6 {[%emt 0:00:30]} 36. Bb6 {[%emt 0:00:30]} e4 {[%emt 0:00:30]} 37. Nc7 {[%emt 0:00:30]} Nf4 {[%emt 0:00:30]} 38. fxe4+ {[%emt 0:00:30]} Kxe4 {[%emt 0:00:30]} 39. Na6 {[%emt 0:00:30]} Ng6 {[%emt 0:00:30]} 40. Nc5+ {[%emt 0:00:30]} Bxc5 {[%emt 0:00:30]} 41. Bxc5 {[%emt 0:00:30]} Ne5 {[%emt 0:00:30]} 42. b5 {[%emt 0:00:30]} Nc4+ {[%emt 0:00:30]} 43. Ke1 {[%emt 0:00:30]} Kd5 {[%emt 0:00:30]} 44. Bf2 {[%emt 0:00:30]} Na5 {[%emt 0:00:30]} 45. Kd2 {[%emt 0:00:30]} Kc4 {[%emt 0:00:30]} 46. b6 {[%emt 0:00:30]} Nb7 {[%emt 0:00:30]} 47. Bg3 {[%emt 0:00:30]} Nc5 {[%emt 0:00:30]} 48. Be5 {[%emt 0:00:30]} g4 {[%emt 0:00:30]} 49. Ke3 {[%emt 0:00:30]} Kb3 {[%emt 0:00:30]} 50. b7 {[%emt 0:00:30]} Nxb7 {[%emt 0:00:30]} 1/2-1/2

[Event "Fall GM Norm Invitational 2020"]
[Site "Charlotte"]
[Date "2020.10.02"]
[Round "4.4"]
[White "Dragun, Kamil"]
[Black "Liang, Jason"]
[Result "1-0"]
[ECO "B10"]
[WhiteElo "2561"]
[BlackElo "2367"]
[Annotator "RC"]
[PlyCount "73"]
[EventDate "2020.09.30"]
[EventType "tourn"]
[EventCountry "USA"]
[SourceTitle "playchess.com"]
[Source "ChessBase"]
[SourceQuality "1"]
[TimeControl "5400+30"]

1. e4 {[%emt 1:30:30]} c6 {[%emt 1:30:30]} 2. Nf3 {[%emt 0:00:30]} d5 {[%emt 0:00:30]} 3. d3 {[%emt 0:00:30]} Qc7 {[%emt 0:00:30]} 4. Nc3 {[%emt 0:00:30]} dxe4 {[%emt 0:00:30]} 5. dxe4 {[%emt 0:00:30]} e5 {[%emt 0:00:30]} 6. Bc4 {[%emt 0:00:30]} Bg4 {[%emt 0:00:30]} 7. h3 {[%emt 0:00:30]} Bh5 {[%emt 0:00:30]} 8. g4 {[%emt 0:00:30]} Bg6 {[%emt 0:00:30]} 9. Nh4 {[%emt 0:00:30]} Nd7 {[%emt 0:00:30]} 10. Qf3 {[%emt 0:00:30]} Nb6 {[%emt 0:00:30]} 11. Nxg6 {[%emt 0:00:30]} hxg6 {[%emt 0:00:30]} 12. Bb3 {[%emt 0:00:30]} Nf6 {[%emt 0:00:30]} 13. a4 {[%emt 0:00:30]} Bb4 {[%emt 0:00:30]} 14. a5 {[%emt 0:00:30]} Nc8 {[%emt 0:00:30]} 15. Bg5 {[%emt 0:00:30]} Nh7 {[%emt 0:00:30]} 16. Be3 {[%emt 0:00:30]} Nd6 {[%emt 0:00:30]} 17. a6 {[%emt 0:00:30]} b6 {[%emt 0:00:30]} 18. O-O-O {[%emt 0:00:30]} Rd8 {[%emt 0:00:30]} 19. h4 {[%emt 0:00:30]} Bxc3 {[%emt 0:00:30]} 20. bxc3 {[%emt 0:00:30]} Nf6 {[%emt 0:00:30]} 21. Bg5 {[%emt 0:00:30]} Ke7 {[%emt 0:00:30]} 22. h5 {[%emt 0:00:30]} gxh5 {[%emt 0:00:30]} 23. gxh5 {[%emt 0:00:30]} Nde8 {[%emt 0:00:30]} 24. Rxd8 {[%emt 0:00:30]} Qxd8 {[%emt 0:00:30]} 25. Qf5 {[%emt 0:00:30]} Qc7 {[%emt 0:00:30]} 26. f4 {[%emt 0:00:30]} Kf8 {[%emt 0:00:30]} 27. Bxf6 {[%emt 0:00:30]} gxf6 {[%emt 0:00:30]} 28. Rd1 {[%emt 0:00:30]} Ng7 {[%emt 0:00:30]} 29. Qd7 {[%emt 0:00:30]} Ne8 {[%emt 0:00:30]} 30. Bxf7 {[%emt 0:00:30]} Qxd7 {[%emt 0:00:30]} 31. Rxd7 {[%emt 0:00:30]} exf4 {[%emt 0:00:30]} 32. Bg6 {[%emt 0:00:30]} f3 {[%emt 0:00:30]} 33. Kd2 {[%emt 0:00:30]} b5 {[%emt 0:00:30]} 34. Ke3 {[%emt 0:00:30]} c5 {[%emt 0:00:30]} 35. Kxf3 {[%emt 0:00:30]} b4 {[%emt 0:00:30]} 36. cxb4 {[%emt 0:00:30]} cxb4 {[%emt 0:00:30]} 37. Rxa7 {[%emt 0:00:30]} 1-0